bitfinex/quotes_ETHUSD_20250110
["timestamp","ask_amount","ask_price","bid_price","bid_amount"]
[1736544560586,4.26108843,3276.8,3276.2,0.58051995]
[1736544561590,4.26108843,3276.8,3276.2,0.55]
[1736544561887,1.20930843,3276.6,3276.2,0.58051995]
[1736544562092,1.20930843,3276.6,3276.2,0.77249616]
[1736544562589,1.20930843,3276.6,3276.2,0.80301611]
[1736544563087,1.20930843,3276.6,3276.2,0.77249616]
[1736544563298,1.20930843,3276.6,3276.2,0.58051996]
[1736544563488,1.20930843,3276.6,3276.2,0.55]
[1736544564477,1.20930843,3276.6,3276.2,0.58051996]
[1736544564707,1.20930843,3276.6,3276.2,0.55]
[1736544565399,1.20930843,3276.6,3276.2,0.58051996]
[1736544566297,1.20930843,3276.6,3276.2,0.55]
[1736544566986,0.8182,3276.3,3275.6,0.7521]
[1736544567190,4.26166843,3276.2,3275.6,0.7521]
[1736544567392,1.20930843,3276.0,3275.6,0.7521]
[1736544567962,1.20930843,3276.0,3275.5,0.5575]
[1736544568217,1.20930843,3276.0,3275.7,0.55]
[1736544576214,1.20930843,3276.2,3275.7,0.55]
[1736544598392,0.8182,3276.3,3275.7,0.55]
[1736544599059,3.05203,3276.6,3276.0,0.0075]
[1736544599060,0.7725,3276.6,3276.0,0.0075]
[1736544599260,0.7725,3277.0,3276.3,0.55]
[1736544599492,0.7725,3277.0,3276.3,0.99072]
[1736544599698,0.7725,3277.0,3276.3,4.04292]
[1736544601099,0.7725,3277.0,3276.3,0.99072]
[1736544601269,0.7725,3277.0,3276.6,0.55]
[1736544601671,0.165846,3277.1,3276.6,1.3109]
[1736544602210,0.165846,3277.1,3277.0,0.55]
[1736544602379,0.165846,3277.1,3277.0,3.60157]
[1736544602704,0.165846,3277.1,3277.0,7.36997]
[1736544602863,0.165846,3277.1,3277.0,8.42269328]
[1736544603418,6e-06,3277.1,3277.0,17.38769328]
[1736544605016,6e-06,3277.1,3277.0,17.38019328]
[1736544605430,6e-06,3277.1,3277.0,17.37269328]
[1736544605748,6e-06,3277.1,3277.0,17.99563788]
[1736544606340,6e-06,3277.1,3277.0,18.21463788]
[1736544606644,6e-06,3277.1,3277.0,18.20713788]
[1736544607351,6e-06,3277.1,3277.0,3.20556788]
[1736544607642,6e-06,3277.1,3277.0,2.1603446]
[1736544607842,6e-06,3277.1,3276.8,0.83711557]
[1736544608047,6e-06,3277.1,3276.9,0.03051288]
[1736544610753,6e-06,3277.1,3276.9,0.58051288]
[1736544611469,6e-06,3277.1,3276.9,0.58051217]
[1736544611682,6e-06,3277.1,3276.9,1.09967494]
[1736544612185,6e-06,3277.1,3276.9,1.09967492]
[1736544612562,6e-06,3277.1,3276.9,0.55]
[1736544617291,0.8175,3277.0,3276.9,0.55]
[1736544617790,0.8175,3277.0,3276.7,0.769]
[1736544618161,0.8175,3277.0,3276.7,0.55]
[1736544618360,0.8175,3277.0,3276.4,0.9953]
[1736544618692,0.8175,3277.0,3276.5,0.5575]
[1736544620891,0.8175,3277.0,3276.4,0.219]
[1736544621092,0.8175,3277.0,3276.2,6.81049]
[1736544621431,0.8175,3277.0,3276.3,0.7765]
[1736544621601,0.8175,3277.0,3276.4,0.0305178]
[1736544622434,0.8175,3277.0,3276.3,0.7765]
[1736544623200,0.8175,3277.0,3276.4,0.03051779]
[1736544623542,0.8175,3277.0,3276.3,0.7765]
[1736544626143,0.8175,3277.0,3276.4,0.03051779]
[1736544627042,0.8175,3277.0,3276.3,0.769]
[1736544627244,0.8175,3277.0,3276.5,0.55]
[1736544627455,0.8175,3277.0,3276.5,0.58051669]
[1736544627657,0.8175,3277.0,3276.5,3.63253669]
[1736544628443,0.8175,3277.0,3276.5,0.55]
[1736544635095,0.8175,3277.0,3276.5,3.60195]
[1736544635310,0.8175,3277.0,3276.7,0.55]
[1736544635629,0.8175,3277.0,3276.6,0.55]
[1736544636047,0.8175,3277.0,3276.4,0.55]
[1736544637051,0.8175,3277.0,3276.4,3.60209]
[1736544638893,0.8175,3277.0,3276.4,3.63260774]
[1736544639244,0.8175,3277.0,3276.6,0.55]
[1736544641241,0.8175,3277.0,3276.4,0.55]
[1736544641796,0.8175,3277.0,3276.3,0.219]
[1736544641797,0.8262,3276.9,3276.2,0.60306575]
[1736544641997,3.05177,3276.8,3275.9,1.0486]
[1736544642200,0.8262,3276.7,3276.1,0.55]
[1736544644755,0.8262,3276.7,3276.1,0.769]
[1736544646826,0.8262,3276.7,3275.9,0.61741029]
[1736544646827,0.7506,3276.3,3275.9,0.61741029]
[1736544647137,0.7506,3276.3,3275.5,3.219]
[1736544647501,0.7506,3276.3,3275.6,0.55]
[1736544647698,3.80283,3276.3,3275.6,1.1280599]
[1736544648001,0.7506,3276.3,3275.6,1.1280599]
[1736544650300,0.74692725,3276.3,3275.6,1.1280599]
[1736544651795,0.74692725,3276.3,3275.6,4.1809199]
[1736544653529,0.74692725,3276.3,3275.6,1.1280599]
[1736544653695,0.74692725,3276.3,3275.6,0.55]
[1736544655116,0.7589,3276.3,3275.6,0.55]
[1736544655444,2.55311749,3276.4,3275.6,0.55]
[1736544655445,0.7589,3276.1,3275.6,0.55]
[1736544657449,0.7589,3276.1,3275.4,0.60394562]
[1736544658228,0.7589,3276.1,3275.5,0.55]
[1736544659042,0.7589,3276.1,3275.5,0.99259856]
[1736544659225,0.7589,3276.1,3275.6,0.03802789]
[1736544659425,0.8063,3276.8,3275.8,0.0075]
[1736544659630,0.8063,3276.8,3276.1,0.55]
[1736544659826,0.8063,3276.8,3276.1,3.60239]
[1736544660051,0.8063,3276.8,3276.2,0.440619]
[1736544660261,0.8063,3276.8,3276.3,0.55]
[1736544661027,0.8063,3276.8,3275.7,1.0288]
[1736544661357,0.8063,3276.8,3275.8,0.03052342]
[1736544662655,0.7746,3276.6,3275.8,3.63318342]
[1736544662855,3.05205,3276.5,3275.8,0.55]
[1736544663166,0.7746,3276.4,3275.8,0.55]
[1736544663922,3.05226,3276.3,3275.8,0.55]
[1736544664219,0.819,3276.2,3275.8,0.55]
[1736544665690,0.819,3276.2,3275.5,0.5575]
[1736544665894,0.819,3276.2,3275.5,0.97969456]
[1736544666111,0.819,3276.2,3275.5,4.03265456]
[1736544668979,0.78,3276.1,3275.4,0.219]
[1736544669372,0.78,3276.1,3275.5,0.55]
[1736544670182,0.78,3276.1,3275.7,0.55]
[1736544670947,0.78,3276.1,3275.6,0.58052768]
[1736544671143,0.78,3276.1,3275.7,0.36334777]
[1736544671457,0.78,3276.1,3275.6,0.55]
[1736544672483,0.78,3276.1,3275.5,0.55]
[1736544675102,0.78,3276.1,3275.3,3.05313]
[1736544675312,0.78,3276.1,3275.4,0.55]
[1736544675606,0.8311,3276.0,3275.2,3.89422289]
[1736544675767,0.8311,3276.0,3275.3,0.55]
[1736544675967,3.05225,3276.3,3275.5,0.55]
[1736544676315,0.785,3276.2,3275.5,0.55]
[1736544677568,3.83735,3276.2,3275.5,0.55]
[1736544678068,0.785,3276.2,3275.5,0.55]
[1736544678290,0.785,3276.2,3275.5,3.60296]
[1736544678491,0.785,3276.2,3275.5,3.63348668]
[1736544679908,0.785,3276.2,3275.5,0.03052668]
[1736544680120,0.7775,3276.0,3275.2,1.30886518]
[1736544680328,0.7775,3276.0,3275.2,0.84099289]
[1736544680686,0.7775,3276.0,3275.3,0.55]
[1736544681095,0.7775,3276.0,3275.3,0.58052838]
[1736544681401,0.7775,3276.0,3275.3,3.63367838]
[1736544681929,0.7775,3276.0,3275.3,0.58052838]
[1736544682135,0.7775,3276.0,3275.3,0.55]
[1736544682428,0.7775,3276.0,3275.3,0.58052838]
[1736544682629,0.7775,3276.0,3275.3,1.10353351]
[1736544682923,0.7775,3276.0,3275.3,4.15662351]
[1736544684620,0.7775,3276.0,3275.3,4.12609513]
[1736544685152,0.7775,3276.0,3275.5,0.55]
[1736544686298,0.7775,3276.0,3275.4,0.58052679]
[1736544686498,0.7775,3276.0,3275.6,0.55]
[1736544687729,0.7775,3276.0,3275.6,0.91334868]
[1736544688031,1.20941898,3276.2,3275.6,0.91334868]
[1736544688032,0.7787,3276.3,3275.8,0.55]
[1736544689429,0.7787,3276.3,3275.6,0.03052571]
[1736544689430,0.7787,3276.3,3275.6,0.58052571]
[1736544689635,0.7787,3277.0,3276.4,0.55]
[1736544689792,0.7787,3277.0,3276.4,3.82112]
[1736544689998,6e-06,3277.1,3276.6,0.55]
[1736544693717,6e-06,3277.1,3276.4,0.219]
[1736544694106,6e-06,3277.1,3276.5,0.55]
[1736544694327,6e-06,3277.1,3276.5,0.987104]
[1736544698868,3.051496,3277.1,3276.5,0.55]
[1736544700347,6e-06,3277.1,3276.5,0.55]
[1736544703187,6e-06,3277.1,3276.5,3.60199]
[1736544703544,6e-06,3277.1,3276.5,0.55]
[1736544707380,6e-06,3277.1,3276.7,0.55]
[1736544713116,3.051526,3277.1,3276.7,0.55]
[1736544713303,1.20879714,3277.0,3276.7,0.55]
[1736544715944,1.20879714,3276.8,3276.5,0.55]
[1736544716148,1.20879714,3276.8,3276.2,1.0396]
[1736544716320,1.97789714,3276.8,3276.3,0.55]
[1736544716938,1.20879714,3276.6,3276.3,0.55]
[1736544717171,1.20879714,3276.6,3276.3,0.70896]
[1736544726060,3.051536,3277.1,3276.8,3.05175]
[1736544726061,6e-06,3277.1,3276.8,3.05175]
[1736544726359,6e-06,3277.1,3276.6,0.0075]
[1736544726360,6e-06,3277.1,3277.0,4.40107]
[1736544726664,6e-06,3277.1,3277.0,7.40107]
[1736544726829,6e-06,3277.1,3277.0,7.41607]
[1736544727033,6e-06,3277.1,3277.0,13.429577]
[1736544732198,6e-06,3277.1,3277.0,14.04978697]
[1736544732522,6e-06,3277.1,3277.0,14.25378697]
[1736544736022,6e-06,3277.1,3277.0,14.26878697]
[1736544739696,6e-06,3277.1,3277.0,14.26128697]
[1736544741056,6e-06,3277.1,3277.0,14.25378697]
[1736544741259,6e-06,3277.1,3277.0,9.291577]
[1736544741799,6e-06,3277.1,3277.0,12.841577]
[1736544742200,6e-06,3277.1,3277.0,4.532507]
[1736544742365,6e-06,3277.1,3277.0,3.769]
[1736544744912,6e-06,3277.1,3277.0,6.82057]
[1736544746377,6e-06,3277.1,3277.0,3.82057]
[1736544746691,6e-06,3277.1,3276.8,3.05173]
[1736544747004,6e-06,3277.1,3276.8,3.27073]
[1736544747200,6e-06,3277.1,3276.9,0.55]
[1736544747805,6e-06,3277.1,3276.7,0.219]
[1736544748101,6e-06,3277.1,3276.6,3.05187]
[1736544748276,0.7957,3277.0,3276.6,3.05187]
[1736544748902,0.7957,3277.0,3276.5,0.60043197]
[1736544749201,1.13044811,3277.0,3276.4,0.219]
[1736544750100,2.55177506,3276.9,3276.1,3.0524]
[1736544750279,0.7504,3276.8,3276.2,0.219]
[1736544750480,0.7504,3276.8,3276.3,0.55]
[1736544750965,0.7504,3276.8,3276.3,3.60221]
[1736544753680,0.7504,3276.8,3276.1,3.27139]
[1736544753884,0.7504,3276.8,3276.1,0.219]
[1736544754098,0.34991747,3276.8,3276.1,0.219]
[1736544754373,0.7504,3276.7,3276.1,0.219]
[1736544754804,0.7504,3276.7,3276.1,3.6024]
[1736544755976,0.7504,3276.7,3275.9,3.87444661]
[1736544756384,0.7504,3276.7,3276.0,3.60242]
[1736544758370,0.7504,3276.7,3276.0,4.34485666]
[1736544758574,0.7504,3276.7,3276.1,3.05238]
[1736544759077,0.783,3277.0,3276.6,3.05193]
[1736544761583,0.783,3277.0,3276.3,3.5575]
[1736544761785,0.783,3277.0,3276.3,3.0075]
[1736544762002,0.783,3277.0,3276.5,3.60202]
[1736544767838,6e-06,3277.1,3276.8,0.55]
[1736544775554,0.7541,3276.5,3275.8,3.0]
[1736544777851,0.833,3276.4,3275.5,4.09091]
[1736544778055,0.833,3276.4,3275.5,3.05291]
[1736544778418,0.833,3276.3,3275.5,3.05291]
[1736544780555,0.833,3276.3,3275.6,3.0528]
[1736544780750,0.833,3276.3,3275.8,3.05261]
[1736544781452,0.833,3276.3,3275.6,3.0528]
[1736544781754,0.833,3276.3,3275.5,0.5575]
[1736544781959,0.833,3276.3,3275.5,3.61045]
[1736544782261,0.833,3276.2,3275.5,0.55]
[1736544784557,0.833,3276.2,3275.5,3.60295]
[1736544796467,0.833,3276.2,3275.5,0.55]
[1736544796643,3.88532,3276.2,3275.5,0.55]
[1736544798581,0.833,3276.2,3275.5,4.04950635]
[1736544799375,0.833,3276.2,3275.5,0.99655635]
[1736544799677,0.8134,3276.0,3275.3,3.05311]
[1736544799970,0.8134,3276.0,3275.4,0.218]
[1736544800536,0.8134,3276.0,3275.2,3.0]
[1736544800836,0.8134,3276.0,3275.3,0.218]
[1736544805890,0.8134,3276.0,3275.5,3.05288]
[1736544806165,0.8134,3276.0,3275.4,0.58052857]
[1736544806166,0.8134,3276.0,3275.6,3.41620086]
[1736544807370,0.8134,3276.0,3275.7,0.55]
[1736544807730,0.8134,3276.0,3275.6,0.36334086]
[1736544807731,0.7896,3276.6,3276.0,0.55]
[1736544807930,0.7896,3276.6,3276.1,0.03052092]
[1736544808086,0.7896,3276.6,3276.1,3.08292092]
[1736544808284,0.7896,3276.6,3276.2,0.36329209]
[1736544809117,0.7896,3276.6,3276.0,3.60243]
[1736544812215,0.7896,3276.6,3275.7,0.7932]
[1736544812216,0.8293,3276.5,3275.6,0.218]
[1736544812619,0.7542,3276.1,3275.3,3.05309]
[1736544812927,0.7542,3276.1,3275.4,0.218]
[1736544813512,0.7542,3276.0,3275.4,0.218]
[1736544813821,2.55177506,3276.0,3275.1,3.05328]
[1736544814001,0.7542,3275.6,3274.9,3.0535]
[1736544814194,0.7542,3275.6,3274.9,0.218]
[1736544814404,0.7542,3275.4,3274.7,0.61681225]
[1736544814590,0.7542,3275.3,3274.5,0.218]
[1736544814784,0.7542,3275.3,3274.5,0.545191]
[1736544814990,0.7542,3275.3,3274.5,3.27186]
[1736544815307,3.80737,3275.3,3274.5,0.218]
[1736544815699,0.7542,3275.2,3274.6,0.55]
[1736544816326,0.7542,3275.2,3274.5,0.218]
[1736544817598,0.7542,3275.2,3274.3,0.55]
[1736544817599,0.8195,3275.1,3274.3,0.55]
[1736544817795,0.8195,3275.1,3274.3,3.82206]
[1736544819492,0.8195,3275.1,3274.3,0.768]
[1736544820008,0.8195,3275.1,3274.3,3.85257745]
[1736544820328,0.8195,3275.1,3274.3,3.63457745]
[1736544820693,0.8195,3275.1,3274.3,3.85257745]
[1736544820889,0.8195,3275.1,3274.3,0.58053745]
[1736544821089,0.8195,3275.1,3274.4,3.05398]
[1736544821350,0.8195,3275.1,3274.5,0.38525175]
[1736544824494,0.8195,3275.1,3274.3,3.82208]
[1736544824709,0.8195,3275.1,3274.3,3.85261744]
[1736544825527,0.8195,3275.1,3274.3,0.79853744]
[1736544825735,0.8195,3275.1,3274.4,3.05399]
[1736544829977,0.81582635,3275.1,3274.4,3.05399]
[1736544830171,0.81582635,3275.1,3274.5,0.38525274]
[1736544832876,0.81582635,3275.1,3274.5,3.43912274]
[1736544833085,0.81582635,3275.1,3274.7,3.05363]
[1736544834518,0.81582635,3275.1,3274.6,3.60378]
[1736544835166,0.81582635,3275.1,3274.5,0.38525274]
[1736544835674,0.81582635,3275.1,3274.3,0.218]
[1736544835981,0.8092,3275.0,3274.3,3.27208]
[1736544836138,0.8092,3275.0,3274.3,0.218]
[1736544836320,0.8092,3275.0,3274.2,0.7755]
[1736544836754,0.8092,3275.0,3274.3,0.03053769]
[1736544837678,0.8092,3275.0,3274.3,3.08458769]
[1736544837815,0.8092,3275.0,3274.4,0.38600877]
[1736544839058,0.8092,3275.0,3274.4,3.43992877]
[1736544841426,0.8092,3275.0,3274.4,0.38600877]
[1736544841636,0.8092,3275.0,3274.2,3.82962]
[1736544841985,0.8092,3275.0,3274.3,3.05403]
[1736544842570,0.8092,3275.0,3274.2,3.82963]
[1736544842738,0.8092,3275.0,3274.3,3.05407]
[1736544843641,0.8092,3275.0,3274.3,3.08460766]
[1736544843836,0.8092,3275.0,3274.4,0.38601077]
[1736544844637,0.8092,3275.0,3274.5,3.05387]
[1736544844834,0.8092,3275.0,3274.6,0.58053766]
[1736544845287,0.8092,3275.0,3274.8,3.05359]
[1736544845473,0.8034,3275.4,3274.8,3.05359]
[1736544845675,0.8034,3275.4,3275.0,3.05335]
[1736544845850,0.8034,3275.4,3275.1,0.305335]
[1736544846748,0.8034,3275.4,3274.6,3.60375]
[1736544847535,3.05307,3275.4,3274.4,3.05391]
[1736544847742,0.8034,3275.3,3274.4,3.05391]
[1736544848381,0.8034,3275.3,3274.5,3.60388]
[1736544848581,0.8034,3275.3,3275.1,3.05325]
[1736544848877,5.38,3275.5,3275.2,0.305325]
[1736544850152,5.38,3275.5,3275.2,3.358485]
[1736544853188,5.38,3275.5,3275.2,0.305325]
[1736544853681,5.38,3275.5,3275.2,3.358555]
[1736544853859,0.8034,3275.6,3275.2,3.358555]
[1736544854182,0.8034,3275.6,3275.3,0.3358555]
[1736544854571,0.8034,3275.6,3275.1,3.0]
[1736544855097,0.8034,3275.6,3275.1,3.60327]
[1736544855585,0.8034,3275.6,3275.0,0.218]
[1736544856454,0.8034,3275.6,3275.0,3.27142]
[1736544859389,0.8034,3275.6,3275.1,3.05329]
[1736544859559,0.8034,3275.6,3275.2,0.327129]
[1736544860583,0.8034,3275.6,3275.0,0.218]
[1736544861683,2.55177506,3275.7,3274.6,0.7903]
[1736544861874,0.7849,3275.4,3274.6,0.218]
[1736544862618,3.05316,3275.3,3274.6,3.0]
[1736544862908,0.7619,3275.2,3274.5,5.25]
[1736544863050,3.05335,3275.1,3274.5,5.25]
[1736544863250,0.7619,3275.0,3274.5,5.25]
[1736544865057,0.7619,3275.0,3274.6,0.55]
[1736544865857,0.7619,3275.0,3274.3,3.61155]
[1736544866057,0.7619,3275.0,3274.6,3.05374]
[1736544868089,0.7619,3275.0,3274.5,0.55]
[1736544868291,0.7619,3275.0,3274.5,3.60387]
[1736544870903,0.7619,3275.0,3274.1,4.42520945]
[1736544871067,0.7619,3275.0,3274.3,3.05402]
[1736544871268,0.7619,3275.0,3274.4,0.63025561]
[1736544873406,0.7619,3275.0,3274.4,3.68424561]
[1736544874978,0.7619,3275.0,3274.6,3.05377]
[1736544875163,0.7619,3275.0,3274.7,3.05368]
[1736544875503,0.7619,3275.0,3274.5,3.05387]
[1736544876505,0.7619,3275.0,3274.4,0.63025561]
[1736544876805,0.7619,3275.0,3274.5,0.36842856]
[1736544878292,0.7619,3275.0,3274.5,3.05387]
[1736544880729,0.7619,3275.0,3274.7,3.05371]
[1736544880891,3.05301,3275.5,3274.8,3.0536]
[1736544880892,0.8145,3275.5,3274.8,3.0536]
[1736544881094,5.38,3276.1,3275.0,0.7712]
[1736544881298,0.8145,3276.0,3275.3,3.05309]
[1736544881559,0.8145,3276.0,3275.4,3.60297]
[1736544884230,0.8145,3276.0,3275.4,3.963267]
[1736544885647,0.8145,3276.0,3275.1,0.218]
[1736544885648,0.8235,3275.9,3275.1,0.218]
[1736544886755,0.8235,3275.8,3275.1,0.218]
[1736544887768,0.8235,3275.8,3275.2,3.05324]
[1736544887951,0.8235,3275.8,3275.1,0.9831]
[1736544888666,0.8235,3275.8,3275.1,4.03642]
[1736544889613,0.8235,3275.8,3275.1,4.44386508]
[1736544890245,0.8235,3275.8,3275.1,3.67876508]
[1736544890716,0.8235,3275.8,3275.2,3.05322]
[1736544893333,0.8235,3275.8,3275.4,3.053]
[1736544893914,6.1655,3276.2,3275.4,3.053]
[1736544894152,6.1655,3276.2,3275.5,0.30835308]
[1736544894348,0.7855,3276.1,3275.5,0.30835308]
[1736544895677,0.7855,3276.1,3275.2,3.60317]
[1736544899323,0.8103,3276.0,3275.2,3.05317]
[1736544899523,0.8103,3275.9,3275.2,3.05317]
[1736544902771,0.8103,3275.9,3275.7,3.05275]
[1736544902974,0.8306,3276.2,3275.6,0.0075]
[1736544903137,7.93177506,3276.9,3275.8,0.03052483]
[1736544903337,0.7626,3276.8,3276.0,3.05246]
[1736544903646,0.7626,3276.8,3276.2,3.0523]
[1736544904046,0.7626,3276.8,3276.1,0.55]
[1736544904450,0.7626,3276.8,3276.1,3.60238]
[1736544906305,0.7626,3276.8,3276.1,0.55]
[1736544906432,0.7626,3276.8,3276.2,3.05231]
[1736544906634,0.7626,3276.8,3276.3,3.412451]
[1736544906953,0.7619,3277.0,3276.3,3.412451]
[1736544908350,0.7619,3277.0,3276.3,0.360231]
[1736544908556,0.7619,3277.0,3276.2,3.0]
[1736544909258,0.7619,3277.0,3276.3,0.03051995]
[1736544909450,0.7619,3277.0,3276.5,3.05202]
[1736544909645,0.7619,3277.0,3276.6,0.5575]
[1736544909956,0.7619,3277.0,3276.8,0.55]
[1736544910470,0.7619,3277.0,3276.6,0.55]
[1736544910772,0.7619,3277.0,3276.3,3.05217]
[1736544912485,0.7619,3277.0,3276.2,5.25]
[1736544912652,0.7704,3276.9,3276.2,5.25]
[1736544913772,0.7704,3276.9,3276.2,0.55]
[1736544917388,0.7704,3276.9,3276.2,0.03051996]
[1736544917589,3.05207,3276.5,3275.6,8.52083]
[1736544917788,2.55177506,3276.7,3275.6,8.52083]
[1736544917789,0.7618,3276.4,3275.6,8.52083]
[1736544917977,0.7618,3276.4,3275.7,3.05277]
[1736544918177,0.7618,3276.4,3275.8,0.58052488]
[1736544921363,0.7618,3276.4,3275.8,0.55]
[1736544921678,0.7618,3276.4,3275.7,0.5575]
[1736544922003,0.7618,3276.4,3275.4,0.62055728]
[1736544922004,0.7901,3276.3,3275.4,0.62055728]
[1736544922174,0.7901,3276.2,3275.5,0.218]
[1736544924816,0.7901,3276.2,3275.5,3.30144637]
[1736544927187,0.7901,3276.2,3275.7,0.0075]
[1736544927401,0.8,3276.5,3276.0,3.0525]
[1736544927578,0.8,3276.5,3276.0,3.43718]
[1736544929380,0.8,3276.5,3276.0,0.38468]
[1736544929584,0.8,3276.5,3275.9,0.55]
[1736544930408,0.8,3276.5,3275.9,3.08310234]
[1736544930595,0.8,3276.5,3276.0,3.05249]
[1736544931367,0.8,3276.5,3275.8,3.60263]
[1736544932219,0.8,3276.5,3275.6,3.05284]
[1736544932388,0.8,3276.5,3275.7,0.43994831]
[1736544932573,0.07627697,3276.4,3275.7,3.08329431]
[1736544933070,0.7948,3276.3,3275.7,3.08329431]
[1736544933571,0.07614583,3276.2,3275.7,3.08329431]
[1736544934516,0.07614583,3276.2,3275.7,3.05277]
[1736544936807,0.07614583,3276.2,3275.7,3.27077]
[1736544937013,0.07614583,3276.2,3275.8,0.327077]
[1736544937217,0.7948,3276.3,3275.8,0.327077]
[1736544937375,0.07567605,3276.2,3275.8,0.327077]
[1736544937569,0.7948,3276.3,3275.8,0.327077]
[1736544937819,0.0756665,3276.2,3275.8,0.327077]
[1736544937999,0.7948,3276.3,3275.9,0.36283713]
[1736544938185,0.0756665,3276.2,3275.9,0.36283713]
[1736544938536,0.7948,3276.3,3275.9,0.36283713]
[1736544938836,0.07567605,3276.2,3275.7,3.27077]
[1736544939312,0.7948,3276.3,3275.7,3.27077]
[1736544939695,0.07567605,3276.2,3275.7,0.218]
[1736544940078,0.7678,3276.1,3275.7,0.218]
[1736544940507,0.07552998,3276.0,3275.7,0.218]
[1736544940714,0.07552998,3276.0,3275.7,0.845095]
[1736544942418,0.07552998,3276.0,3275.7,0.218]
[1736544948102,0.07552998,3276.0,3275.9,3.60259]
[1736544948408,6.1433,3276.6,3276.0,0.55]
[1736544948584,0.07565726,3276.5,3276.0,0.55]
[1736544948789,0.07565726,3276.5,3275.8,0.5575]
[1736544949108,0.07565726,3276.5,3275.9,0.1596]
[1736544950812,0.7881,3276.4,3275.9,0.1596]
[1736544951120,0.07555885,3276.3,3275.9,0.1596]
[1736544952723,0.07555885,3276.3,3276.2,3.60231]
[1736544952948,0.07555885,3276.3,3276.2,7.40942907]
[1736544953095,6e-06,3277.1,3276.9,1.3191]
[1736544953422,6e-06,3277.1,3276.9,4.37075]
[1736544953637,6e-06,3277.1,3276.9,1.3191]
[1736544953784,6e-06,3277.1,3276.7,3.300314]
[1736544953785,0.07348904,3277.0,3276.8,0.55]
[1736544955435,6e-06,3277.1,3276.8,0.55]
[1736544955582,0.07317047,3277.0,3276.8,1.0119414]
[1736544956288,0.8013,3276.9,3276.8,0.4619414]
[1736544956488,0.8013,3276.9,3276.7,0.218]
[1736544957420,0.07327059,3276.8,3276.7,0.768]
[1736544957643,0.8013,3276.9,3276.7,0.218]
[1736544957822,0.8013,3276.9,3276.2,3.05225]
[1736544957985,0.8013,3276.9,3275.9,0.918]
[1736544957986,0.0731157,3276.8,3276.1,3.218]
[1736544958186,0.0731157,3276.8,3276.1,0.936849]
[1736544958418,0.0731157,3276.8,3276.1,0.218]
[1736544958601,3.83675,3276.7,3276.1,0.218]
[1736544958800,0.07316581,3276.6,3276.1,0.218]
[1736544961330,0.7778,3276.5,3275.7,0.218]
[1736544961624,2.55177506,3276.9,3275.7,0.218]
[1736544961625,0.7778,3276.3,3275.7,0.218]
[1736544961786,0.07305337,3276.2,3275.7,0.218]
[1736544962829,0.07305337,3276.2,3275.5,0.55]
[1736544963205,0.07305337,3276.2,3275.5,3.63345631]
[1736544963526,0.07305337,3276.2,3275.5,4.15918299]
[1736544964808,0.07305337,3276.2,3275.5,1.07572668]
[1736544965008,0.07305337,3276.2,3275.5,0.55]
[1736544966757,0.07305337,3276.2,3275.5,3.60295]
[1736544966944,0.07305337,3276.2,3275.6,3.05285]
[1736544967252,0.07305337,3276.2,3275.5,0.58052628]
[1736544967844,0.07305337,3276.2,3275.5,0.55]
[1736544968540,0.07305337,3276.2,3275.5,0.58052628]
[1736544968714,0.07305337,3276.2,3275.5,0.55]
[1736544968912,3.0525,3276.0,3275.1,0.83]
[1736544969111,0.8155,3275.9,3275.0,3.05337]
[1736544969316,0.88802714,3275.9,3275.0,3.27137]
[1736544969743,0.8155,3275.8,3275.0,3.27137]
[1736544969918,0.8155,3275.8,3275.1,3.60331]
[1736544970237,0.07057087,3275.7,3275.2,0.382131]
[1736544972453,0.07057087,3275.7,3275.1,3.60331]
[1736544973739,0.07057087,3275.7,3275.2,3.05324]
[1736544974545,0.07057087,3275.7,3275.1,0.58052997]
[1736544974745,0.07057087,3275.7,3275.5,3.05296]
[1736544974963,0.8155,3275.8,3275.5,3.05296]
[1736544975163,0.07040623,3275.7,3275.5,3.05296]
[1736544975349,0.8155,3275.8,3275.5,3.05296]
[1736544975563,0.07040623,3275.7,3275.5,3.05296]
[1736544975764,0.8155,3275.8,3275.5,3.05296]
[1736544976070,0.07055117,3275.7,3275.5,3.05296]
[1736544976483,0.795,3276.2,3275.7,3.05276]
[1736544976787,0.07084386,3276.1,3275.8,0.55]
[1736544980403,0.07084386,3276.1,3275.6,0.5575]
[1736544980608,0.8072,3276.0,3275.1,8.30325]
[1736544980775,3.12330386,3276.1,3275.1,8.30325]
[1736544980776,0.8072,3275.8,3275.1,6.178445]
[1736544980973,0.07058152,3275.7,3275.1,6.178445]
[1736544982574,0.07058152,3275.7,3275.1,9.231765]
[1736544983981,0.07058152,3275.7,3275.2,3.05324]
[1736544984321,0.07058152,3275.7,3275.3,0.9231685]
[1736544984489,0.07058152,3275.7,3275.2,3.05324]
[1736544984675,0.8072,3275.8,3275.2,3.05324]
[1736544984874,0.07058382,3275.6,3275.2,3.05324]
[1736544985099,0.07064941,3275.7,3275.2,3.05324]
[1736544985304,0.07051822,3275.5,3275.2,3.05324]
[1736544985629,0.07045262,3275.4,3275.2,3.380364]
[1736544985792,0.8072,3275.8,3275.2,3.380364]
[1736544985995,0.07065314,3275.7,3275.2,3.05324]
[1736544989437,3.05325,3275.2,3274.1,6.0132]
[1736544989596,2.62198607,3275.1,3274.1,6.0132]
[1736544989797,2.62198607,3275.1,3274.8,3.05358]
[1736544989798,0.07021101,3275.1,3274.8,3.05358]
[1736544990028,0.07021101,3275.1,3274.8,0.58053271]